Cogmind - Beta 15 @@@ ROGUE MODE // 2025.07.29 @ 13:21:51 Player: Minty Result: Destroyed by G-34 Mercenary with Small Laser Performance ------------- Evolutions (1) 500 Regions Visited (2) 400 Robots Destroyed (19) 95 Value Destroyed (565) 565 Prototype IDs (2) 40 Alien Tech Used (0) 0 Bonus (0) 0 TOTAL SCORE: 1600 Bonus ------- None Cogmind --------- Core Integrity 0/400 Matter 136/300 Energy 100/100 System Corruption 0% Temperature Cool (6) Movement Core (100) Ox1 Location -9/Materials Parts ------- > --- POWER (1) -------- (None) > --- PROPULSION (3) --- (None) > --- UTILITY (3) ------ Terrain Scan Processor > --- WEAPON (2) ------- Autogun Shotgun > --- INVENTORY (5) ---- Improved Ion Engine Improved EM Shotgun Improved Medium Laser Heavy Assault Rifle Peak State ------------ > --- POWER ------------ Ion Engine > --- PROPULSION ------- VTOL Module VTOL Module VTOL Module > --- UTILITY ---------- Large Storage Unit Sensor Array Hardened Light Armor Plating > --- WEAPON ----------- Heavy Assault Rifle Autogun > --- INVENTORY -------- Light Ion Engine Light Treads Aluminum Leg Aluminum Leg Compact Wheel Compact Wheel Small Storage Unit Medium Storage Unit Terrain Scan Processor Weapon Shielding Weapon Shielding Tractor Beam Medium Laser Improved Medium Laser Hammer [Rating: 16] Favorites ----------- Power Ion Engine Engine Ion Engine Propulsion Light Treads Treads Light Treads Leg Aluminum Leg Flight Unit VTOL Module Utility Sensor Array Device Sensor Array Storage Large Storage Unit Processor Terrain Scan Processor Protection Weapon Shielding Weapon Light Assault Rifle Energy Gun Medium Laser Ballistic Gun Light Assault Rifle Impact Weapon Hammer Build | -11 -10 -9 ------- Run | Yrd Mat Mat Slots Evolved 2 | . . 2 Power . | . . . Propulsion 1 | . . 1 Utility 1 | . . 1 Weapon . | . . . Parts Attached 25 | . 6 19 Power 1 | . . 1 Engine 1 | . . 1 Core . | . . . Reactor . | . . . Propulsion 6 | . 2 4 Treads 3 | . 2 1 Leg . | . . . Wheel . | . . . Hover . | . . . Flight 3 | . . 3 Utility 9 | . 2 7 Device 2 | . 1 1 Storage 3 | . 1 2 Processor 1 | . . 1 Hackware . | . . . Protection 3 | . . 3 Artifact . | . . . Weapon 9 | . 2 7 Energy Gun 3 | . 1 2 Energy Cannon . | . . . Ballistic Gun 5 | . 1 4 Ballistic Cannon . | . . . Launcher . | . . . Special Weapon . | . . . Impact Weapon 1 | . . 1 Slashing Weapon . | . . . Piercing Weapon . | . . . Special Melee Weapon . | . . . Unidentified Prototypes 2 | . . 2 Parts Lost 8 | . . 8 Power 1 | . . 1 Propulsion 3 | . . 3 Utility 3 | . . 3 Weapon 1 | . . 1 Highest Loss Streak 6 | . . 6 To Critical Strikes . | . . . Average Backups 9 | 6 9 8 Power 1 | 1 1 1 Propulsion 3 | 4 5 1 Utility 2 | . 2 2 Weapon 2 | 1 . 3 Tool/Special . | . . . Unused Backups 13 | . 6 7 Power 2 | . 1 1 Propulsion 5 | . . 5 Utility 4 | . 3 1 Weapon 2 | . 2 . Tool/Special . | . . . Average Slot Usage (%) 83 | . 90 72 Engine 11 | . 14 7 Treads 17 | . 25 5 Leg 1 | . 2 . Flight 7 | . . 17 Device 7 | . 7 8 Storage 11 | . 14 8 Processor 1 | . . 2 Protection 2 | . . 6 Energy Gun 3 | . 5 . Ballistic Gun 16 | . 20 10 Impact Weapon 1 | . . 4 Peak Build Rating 16 | 6 8 16 Average Rating 8 | 6 6 10 On Entrance 6 | 6 6 8 Naked Turns . | . . . Heaviest Build 37 | 12 32 37 Greatest Support 60 | 20 40 60 Greatest Overweight (x) 9 | . . 9 Average Overweight (x) . | . . . Largest Inventory Capacity 15 | 8 15 15 Average Capacity 11 | 8 13 8 Most Carried 15 | 6 15 15 Average Carried 9 | 6 9 8 Final Capacity 15 | 8 15 5 Final Carried 14 | 6 14 4 Class Distribution -------------------- 69% | Mutant 30% | Sprinter Dominant Class ---------------- Mutant | -10/Materials Sprinter | -9/Materials Resources | -11 -10 -9 ----------- Run | Yrd Mat Mat Matter Collected 446 | 200 130 116 Remotely . | . . . Salvage Created 737 | . 233 504 Parts 37 | . 11 26 Haulers Intercepted 2 | . . 2 Recyclers Shooed . | . . . Parts Field Recycled . | . . . Retrieved Matter . | . . . Parts Self-Destructed . | . . . Prevented . | . . . Kills | -11 -10 -9 ------- Run | Yrd Mat Mat Combat Hostiles Destroyed 14 | . 5 9 Guns 13 | . 5 8 Classes Destroyed 5 | . 2 3 Builder 1 | . 1 . Hauler 2 | . . 2 Operator 2 | . . 2 Grunt 12 | . 5 7 Sentry 2 | . . 2 Best Kill Streak 8 | . 2 8 Combat Bots Only 8 | . 2 8 Max Kills in Single Turn 2 | . 1 2 Gunslinging 1 | . . 1 Exploded . | . . . Melee . | . . . Uniques/NPCs Destroyed . | . . . Combat | -11 -10 -9 -------- Run | Yrd Mat Mat Hostile Shots Fired 192 | . 66 126 Missed 60 | . 19 41 Hits 132 | . 47 85 Projectile 132 | . 47 85 Damage Taken 1571 | . 564 1007 Core 579 | . 176 403 Absorbed by Shields . | . . . Regen/Repaired (Parts) 7 | . . 7 Core Remaining (%) 64 | 100 29 . Volleys Fired 43 | . 30 13 Largest 2 | . 2 2 Hottest 70 | . 70 46 Shots Fired 83 | . 58 25 Gun 83 | . 58 25 Cannon . | . . . Launcher . | . . . Special . | . . . Kinetic 75 | . 50 25 Thermal 8 | . 8 . Explosive . | . . . Electromagnetic . | . . . Robot Hit Streak 12 | . 5 12 Robot Miss Streak 5 | . 5 3 Penetration Max . | . . . Secondary Targets 5 | . 1 4 Max Gunslinging Chain 1 | . 1 1 Shots Hit Robots 68 | . 31 37 Core Hits 31 | . 14 17 Critical Kills . | . . . Critical Parts Destroyed . | . . . Critical Strikes . | . . . Melee Attacks 26 | . . 26 Impact 26 | . . 26 Slashing . | . . . Piercing . | . . . Sneak Attacks 2 | . . 2 Combat Hostiles . | . . . Follow-up Attacks . | . . . Damage Inflicted 1182 | . 310 872 Guns 714 | . 310 404 Cannons . | . . . Explosions . | . . . Melee 468 | . . 468 Ramming . | . . . Kinetic 689 | . 285 404 Thermal 25 | . 25 . Explosive . | . . . Electromagnetic . | . . . Impact 468 | . . 468 Slashing . | . . . Piercing . | . . . Highest Corruption . | . . . Average Corruption . | . . . Corruption Purged . | . . . Corruption Blocked . | . . . Overload Shots . | . . . Overflow Damage 78 | . . 78 Projectiles . | . . . Explosions . | . . . Melee 78 | . . 78 Knockbacks 2 | . . 2 Impact 2 | . . 2 Kinetic . | . . . Secondary . | . . . Self-Inflicted Damage . | . . . Shots . | . . . Rammed . | . . . Targets Rammed . | . . . Kicked . | . . . Crushed . | . . . Highest Temperature 168 | . 168 17 Average Temperature 48 | . 59 8 Received Heat Transfer 825 | . 318 507 Siege Activations . | . . . Martial Activations . | . . . Shielding Activations . | . . . Robots Disrupted . | . . . Combat Hostiles . | . . . Robots Corrupted 2 | . . 2 Combat Hostiles 1 | . . 1 Parts Fried 3 | . . 3 Impact Corruptions 4 | . . 4 Robots Melted . | . . . Combat Hostiles . | . . . Parts Melted . | . . . Heat Transferred 74 | . 74 . Parts Sabotaged . | . . . Parts Stolen . | . . . Parts Stripped . | . . . Power Chain Reactions . | . . . Alert | -11 -10 -9 ------- Run | Yrd Mat Mat Maximum Alert Level . | . . . Low Security (%) 100 | 100 100 100 Level 1 . | . . . Level 2 . | . . . Level 3 . | . . . Level 4 . | . . . Level 5 . | . . . High Security . | . . . Max Security . | . . . Peak Influence 170 | . 40 170 Initial . | . . . Average 15 | . 12 20 Influence Increases 415 | . 125 290 Destroy 0b10 Robot/C 280 | . 100 180 Destroy 0b10 Robot/NC 25 | . 5 20 Destroy Leader 74 | . 20 54 Trap Triggered on 0b10 30 | . . 30 Successful Hack 4 | . . 4 Destroy Structure 2 | . . 2 Influence Decreases 245 | . 125 120 Time Decay 181 | . 125 56 Lost Part 64 | . . 64 Squads Dispatched 5 | . 2 3 Investigation 5 | . 2 3 Extermination . | . . . Reinforcement . | . . . Assault . | . . . Garrison . | . . . Intercept . | . . . Searches Triggered . | . . . Construction Impeded . | . . . Haulers Reinforced . | . . . Active Scanning Responses . | . . . Cargo Convoy Interrupts . | . . . Stealth | -11 -10 -9 --------- Run | Yrd Mat Mat Distress Signals 3 | . . 3 Communications Jammed . | . . . Distress Signals . | . . . Times Spotted 22 | . 6 16 Peak Tracking Total 13 | . 3 13 Tactical Retreats . | . . . Traps | -11 -10 -9 ------- Run | Yrd Mat Mat Traps Triggered 2 | . 2 . Indirectly . | . . . Trap Hack Attempts . | . . . Triggered . | . . . Disarmed . | . . . Reprogrammed 6 | . . 6 Reused 3 | . . 3 Traps Extracted . | . . . Installed . | . . . Triggered 3 | . . 3 Machines | -11 -10 -9 ---------- Run | Yrd Mat Mat Machines Disabled . | . . . Max in Single Turn . | . . . Machines Repaired . | . . . Machines Dismantled . | . . . Machines Sabotaged . | . . . Overloaded Fab Kills . | . . . Hacking | -11 -10 -9 --------- Run | Yrd Mat Mat Machines Accessed 5 | . . 5 Terminals 4 | . . 4 Fabricators . | . . . Repair Stations 1 | . . 1 Recycling Units . | . . . Scanalyzers . | . . . Garrison Access . | . . . Total Hacks 14 | . . 14 Successful 6 | . . 6 Failed 8 | . . 8 Catastrophic 1 | . . 1 Database Lockouts . | . . . Manual 10 | . . 10 Terminals 12 | . . 12 Fabricators . | . . . Repair Stations 2 | . . 2 Recycling Units . | . . . Scanalyzers . | . . . Garrison Access . | . . . Terminal Hacks 2 | . . 2 Locate Traps 1 | . . 1 Reprogram Traps 1 | . . 1 Fabricator Hacks . | . . . Repair Station Hacks . | . . . Recycling Unit Hacks . | . . . Scanalyzer . | . . . Garrison Access Hacks . | . . . Unauthorized Hacks 4 | . . 4 Terminals 3 | . . 3 Botnet 2 | . . 2 Search 1 | . . 1 Fabricators . | . . . Repair Stations 1 | . . 1 Patch 1 | . . 1 Recycling Units . | . . . Scanalyzers . | . . . Garrison Access . | . . . Data Cores Recovered 2 | . . 2 Used 2 | . . 2 Hacking Detections 4 | . . 4 Full Trace Events 2 | . . 2 Feedback Events . | . . . Feedback Blocked . | . . . Robot Schematics Acquired . | . . . Robots Built . | . . . Authchips . | . . . Time . | . . . Total Robot Build Rating . | . . . Part Schematics Acquired . | . . . Parts Built . | . . . Authchips . | . . . Time . | . . . Total Part Build Rating . | . . . Parts Repaired . | . . . Time . | . . . Parts Recycled . | . . . Recycled Matter . | . . . Retrieved Matter . | . . . Retrieved Components . | . . . Parts Scanalyzed . | . . . Part Schematics Acquired . | . . . Parts Damaged . | . . . Bothacking | -11 -10 -9 ------------ Run | Yrd Mat Mat Used RIF Installer . | . . . Robots Hacked . | . . . Non-combat . | . . . Combat . | . . . Robot Hacks Applied . | . . . Relay Couplers Released . | . . . Fabnet Peak Effective % . | . . . Robots Rewired . | . . . Allies Hacked . | . . . Hacks Repelled . | . . . Allies | -11 -10 -9 -------- Run | Yrd Mat Mat Total Allies . | . . . Largest Group . | . . . Highest-Rated Group . | . . . Highest-Rated Ally . | . . . Total Orders . | . . . Ally Attacks . | . . . Total Damage . | . . . Kills . | . . . Allies Corrupted . | . . . Allies Melted . | . . . Intel | -11 -10 -9 ------- Run | Yrd Mat Mat Active Infowar (turns) 422 | . 206 216 Sensors 422 | . 206 216 Robot Analysis Total . | . . . Derelict Logs Recovered . | . . . Drone Launches . | . . . Drone Recoveries . | . . . Exploration | -11 -10 -9 ------------- Run | Yrd Mat Mat Turns Passed 689 | 2 398 289 Spaces Moved 443 | 2 186 255 Core 41 | . . 41 Treads 192 | . 173 19 Legs 15 | 2 13 . Wheels . | . . . Hover . | . . . Flight 195 | . . 195 Fastest Speed 29 | 120 120 29 Average Speed 96 | 120 157 52 Slowest Speed 755 | 120 160 755 Overloaded Moves . | . . . Propulsion Burnouts . | . . . Robots Hopped . | . . . Potential Cave-ins . | . . . Cave-ins Triggered . | . . . Exploration Rate (%) 19 | 2 33 23 Regions Visited 2 Branch Regions . Pre-discovered Areas . | . . . Known Exits Taken . | . . . Unknown Exits Taken 2 | 1 1 . Scrap Searched . | . . . Spaces Dug 2 | . . 2 Terrain Destroyed 2 | . . 2 Melee 2 | . . 2 Projectile . | . . . AOE . | . . . Terrain Rammed . | . . . Walls Destroyed . | . . . Machines Disabled . | . . . Actions | -11 -10 -9 --------- Run | Yrd Mat Mat Total 591 | 1 243 347 Wait 3 | . 1 2 Move 441 | 1 185 255 Hop . | . . . Pick Up 16 | . 13 3 Fast Attach 14 | . 2 12 Attach 6 | . 1 5 Detach 6 | . 1 5 Swap 8 | . 3 5 Drop 28 | . 7 21 Fire 43 | . 30 13 Melee 26 | . . 26 Ram . | . . . Kick . | . . . Crush . | . . . Escape Stasis . | . . . Rewire . | . . . Trap . | . . . Miscellaneous . | . . . Route ------- -11/Scrapyard -10/Materials -9/Materials History --------- Turn | Location | Event 1 | -11/Scrapyard | Discovered new exit (range 1) 3 | -11/Scrapyard | Entered Materials 168 | -10/Materials | Discovered new exit (range 10) 250 | -10/Materials | Core integrity fell below 50% 308 | -10/Materials | Build established: Mutant 401 | -10/Materials | Entered another Materials area 401 | -9/Materials | Evolved 2 slots: Propulsion x1, Utility x1 655 | -9/Materials | Core integrity fell below 50% 670 | -9/Materials | Lost 6 parts (1p3n2u) 681 | -9/Materials | Core integrity fell below 20% 690 | -9/Materials | Destroyed by G-34 Mercenary with Small Laser Last Messages --------------- 00668_ G-34 Mercenary destroyed. 00668_ Switching to secondary target: Y-45 Defender. 00668_ Y-45 Defender destroyed. 00670_ Shotgun destroyed. 00672_ Acquired Lgt. Armor Plating. 00676_ G-34 Mercenary destroyed. 00678_ Lgt. Armor Plating destroyed. 00681_ K-01 Serf collects debris. 00682_ R-06 Scavenger inserts Hammer into recycling unit. 00683_ Recycling unit begins recycling process. 00684_ Recycling unit begins matter transfer process. 00684_ K-01 Serf collects debris. 00685_ R-06 Scavenger collects Lgt. Treads. 00685_ R-06 Scavenger inserts Med. Storage Unit into recycling unit. 00687_ G-47 Trooper destroyed. 00687_ Switching to secondary target: G-34 Mercenary. 00687_ G-34 Mercenary destroyed. 00688_ K-01 Serf collects debris. 00688_ R-06 Scavenger inserts Lgt. EM Pulse Cannon into recycling unit. 00689_ Recycling unit begins recycling process. Map ----- +----------------------------------------------------+ | ???????????????????????????#"" """"""" #??????? | | ???????????????????????????#"T """"""" #??????? | | ???????????????????????????#"" """"""" #??????? | | ???????????????????????????### """"""" #??????? | | ???? ??????????????????##### "%%"""" #??????? | | ???? ?????????????????#"""# #??????? | | ?????? ?????#######???#"R"# [%= #???#??? | | ??????"" ##### #####" "#####+####### #??? | | ??????T" ! # #??? | | ???????? ! # #??? | | ???????????? # """ #??? | | ???????????????# # "T" #####??? | | ???????????????## ## #??????? | | ????????????????# ## """ #??????? | | ????????????????# ## """ ! ###????? | | ????????????????# ## """ #????? | | ???????????????## ## """! !]] #????? | | ???????????????# # ""[/ ] ]! #????? | | ???????????????# *]] #????? | | ???????????????# " #????? | | ???????????????# ######### #????? | | ???????????????# ##+########???^ ^^^#????? | | ???????????????####### rkg[ #???^^ #????? | | ?????????????????????# ""r%%] #??? ######????? | | ?????????????????????# "Y[!= #??? #?????????? | | ?????????????????????# ""@= #??? #?????????? | | ?????????????????????# %%!= ##?? ??????????? | | ?????????????????????#|!=![ #?? ??????????? | | ?????????????????????#*=g[[ ##?????????????? | | ????#???????????????## [[[ #??????????????? | | ????# #####+####################??????????????? | | ????# ^ ??????????? | | ????# ^^ ##"###############????????????????? | | ??### ^ # ##!=! #????????????????? | | + ^^ # ##=== #????????????????? | | ??###### ## # ##==!! "T" #????????????????? | | ??????????# #[ ##== """ #????????????????? | | ??????????# ##+#########+#####????????????????? | | ??????????# #?????????????????? | | ??????????# #?????????????????? | | ??????????# / = #?????????????????? | | ??????????#####+######T######?????????????????? | | ??????????# ####??????????????????????? | | ??????????# #?????????????????????????? | | ??????????# #?????????????????????????? | | ??????????# """ """ #?????????????????????????? | | ??????????# """ """ #?????????????????????????? | | ??????????# """ """ #?????????????????????????? | | ??????????# #?????????????????????????? | | ??????????# * #?????????????????????????? | +----------------------------------------------------+ Best States ------------- Heat Dissipation 28 Energy Generation 10 Energy Capacity 250 Matter Stores 300 Matter Capacity 300 Sight Range 16 Robot Scan Range 14 Terrain Scan Density 85 Armor Coverage 150 Weapon Shielding 33 Evasion (%) 64 Recoil Reduction 3 Item Schematics ----------------- None Robot Schematics ------------------ None Fabricated ------------ Nothing Repaired ---------- Nothing Alien Tech Used ----------------- None Achievements -------------- None Challenges ------------ None Game ------ Seed RocketSystemScreen Manual? 0 Play Time 00:08:13 Cumulative 1154.3 hours Start 2025.07.29 @ 13:16:43 End 2025.07.29 @ 13:21:51 Sessions 1 Manual Loads 0 Difficulty Rogue Special Mode None Game No. 1421 Rogue 1137 Adventurer 124 Explorer 160 Win Type - Total 52 Types 38/0/8/4/1/0/0/1/0/0 Lore% 92 Gallery% 88 Achievement% 81 Wizard Run 0 Options --------- Layout 0 ASCII 0 Keyboard 1 Movement Numpad Keybinds 0 Fullscreen 2 Font 18/X11 Map View 76x50 Zoom Use 0% Tactical HUD 1 Map Filters NONE Filters NONE Steam 1 RUN: 28438518-6930-4e77-b336-9c5d7b994754